bitfinex/quotes_ETHUSD_20251010
["timestamp","ask_amount","ask_price","bid_price","bid_amount"]
[1760096009062,2.30128411,4345.4,4345.3,0.001]
[1760096009365,2.30248411,4345.4,4345.3,3.01]
[1760096010127,2.99441629,4345.4,4345.3,3.01]
[1760096011751,3.62801629,4345.4,4345.3,5.381]
[1760096011901,8.58382404,4345.4,4345.3,5.381]
[1760096012098,11.48577104,4345.4,4345.3,5.381]
[1760096013108,3.62801629,4345.4,4345.3,5.381]
[1760096014359,3.62721629,4345.4,4345.3,5.381]
[1760096014563,0.69193218,4345.4,4345.3,5.381]
[1760096015696,0.49575559,4345.8,4345.3,5.381]
[1760096015895,0.69184601,4345.7,4345.4,0.4422]
[1760096016123,0.69184601,4345.7,4345.3,5.381]
[1760096016124,0.69184601,4345.7,4345.5,3.463]
[1760096017419,2.99297495,4345.7,4345.5,3.463]
[1760096017804,0.69184601,4345.7,4345.5,3.463]
[1760096018330,2.99298072,4345.7,4345.5,3.463]
[1760096018532,2.3011782,4345.6,4345.5,3.463]
[1760096019883,2.99302421,4345.6,4345.5,3.463]
[1760096020085,0.69304601,4345.6,4345.3,0.001]
[1760096020383,13.61206976,4345.4,4345.3,0.001]
[1760096020611,12.95640202,4345.4,4345.3,0.095]
[1760096020808,13.64959166,4345.4,4345.3,0.095]
[1760096020990,12.56670066,4345.4,4345.3,0.095]
[1760096021189,18.18812966,4345.4,4345.3,0.095]
[1760096021613,18.18812966,4345.4,4345.3,0.001]
[1760096021817,18.18812966,4345.4,4345.3,3.438]
[1760096022213,8.99229366,4345.4,4345.3,3.438]
[1760096022383,20.29966966,4345.4,4345.3,3.438]
[1760096023121,20.29966966,4345.4,4345.3,3.465]
[1760096023287,29.26914166,4345.4,4345.3,3.465]
[1760096024284,29.48579366,4345.4,4345.3,3.465]
[1760096024680,28.50379066,4345.4,4345.3,3.465]
[1760096024924,27.13810566,4345.4,4345.3,3.465]
[1760096025143,8.99229366,4345.4,4345.3,3.465]
[1760096025302,23.80935066,4345.4,4345.3,3.465]
[1760096025496,24.98955066,4345.4,4345.3,3.465]
[1760096026126,18.39895166,4345.4,4345.3,3.465]
[1760096026492,22.51482666,4345.4,4345.3,3.465]
[1760096026693,15.86383466,4345.4,4345.3,3.465]
[1760096026912,13.84709066,4345.4,4345.3,3.465]
[1760096027405,8.99229366,4345.4,4345.3,3.465]
[1760096027609,24.12132366,4345.4,4345.3,3.465]
[1760096028212,24.42000055,4345.4,4345.3,3.465]
[1760096028595,38.99229366,4345.4,4345.3,3.465]
[1760096029990,38.99429366,4345.4,4345.3,3.465]
[1760096031210,38.99429366,4345.4,4344.9,0.001]
[1760096031211,26.84281497,4345.0,4344.9,0.001]
[1760096031407,30.72014188,4345.0,4344.9,0.001]
[1760096031611,30.08822558,4345.0,4344.9,0.001]
[1760096032139,30.18051066,4345.0,4344.9,0.001]
[1760096032510,9.01280466,4345.0,4344.9,0.001]
[1760096032709,39.01280466,4345.0,4344.9,0.001]
[1760096033444,38.39280096,4345.0,4344.9,0.001]
[1760096033952,14.99667396,4345.0,4344.9,0.001]
[1760096034274,13.37178496,4345.0,4344.9,0.001]
[1760096034807,19.58740696,4345.0,4344.9,0.001]
[1760096035239,20.20741066,4345.0,4344.9,0.001]
[1760096035448,19.58740696,4345.0,4344.9,0.001]
[1760096035629,21.50740696,4345.0,4344.9,0.001]
[1760096035833,40.31280096,4345.0,4344.9,0.001]
[1760096036445,30.43733596,4345.0,4344.9,0.001]
[1760096036947,14.86903109,4345.0,4344.9,0.001]
[1760096037138,14.24901996,4345.0,4344.9,0.001]
[1760096037341,14.86903109,4345.0,4344.9,0.001]
[1760096037848,17.50851709,4345.0,4344.9,0.001]
[1760096038055,15.40862709,4345.0,4344.9,0.001]
[1760096038261,12.81785596,4345.0,4344.9,0.001]
[1760096038559,4.80883931,4345.0,4344.9,0.001]
[1760096038758,7.47644131,4345.0,4344.9,0.001]
[1760096038947,8.11004131,4345.0,4344.9,0.001]
[1760096039334,5.44363931,4345.0,4344.9,0.001]
[1760096039737,8.43613231,4345.0,4344.9,0.001]
[1760096040529,5.44363931,4345.0,4344.9,0.001]
[1760096040761,5.44363931,4345.0,4344.9,3.466]
[1760096040762,2.88883931,4345.0,4344.9,3.466]
[1760096040962,3.00323931,4345.0,4344.9,3.466]
[1760096041175,2.50738105,4345.0,4344.9,3.466]
[1760096041355,0.20668508,4345.0,4344.9,3.466]
[1760096041665,2.50818105,4345.0,4344.9,3.466]
[1760096042234,3.14298105,4345.0,4344.9,3.466]
[1760096042428,23.73322296,4345.0,4344.9,3.466]
[1760096042665,24.03189985,4345.0,4344.9,3.466]
[1760096042867,25.95189985,4345.0,4344.9,0.001]
[1760096043245,24.60215696,4345.0,4344.9,0.001]
[1760096043442,26.65249696,4345.0,4344.9,0.001]
[1760096044444,15.85231196,4345.0,4344.9,0.001]
[1760096045371,16.42653596,4345.0,4344.9,0.001]
[1760096045537,8.58670952,4345.0,4344.9,0.001]
[1760096045738,13.45507117,4345.0,4344.9,0.001]
[1760096046359,12.83487296,4345.0,4344.9,0.001]
[1760096046570,40.42720096,4345.0,4344.9,0.001]
[1760096047478,35.06085296,4345.0,4344.9,0.001]
[1760096047774,26.36113696,4345.0,4344.9,0.001]
[1760096048450,30.33690496,4345.0,4344.9,0.001]
[1760096048648,29.99291596,4345.0,4344.9,0.001]
[1760096048971,30.8232471,4345.0,4344.9,0.001]
[1760096049304,29.99291596,4345.0,4344.9,0.001]
[1760096049452,32.7756311,4345.0,4344.9,0.001]
[1760096049647,31.94529996,4345.0,4344.9,0.001]
[1760096050053,32.77329852,4345.0,4344.9,0.001]
[1760096050366,29.35789352,4345.0,4344.9,0.001]
[1760096050545,41.25519952,4345.0,4344.9,0.001]
[1760096051679,36.69472852,4345.0,4344.9,0.001]
[1760096052381,18.32809852,4345.0,4344.9,0.001]
[1760096052543,18.92967752,4345.0,4344.9,0.001]
[1760096053576,27.13669152,4345.0,4344.9,0.001]
[1760096053776,26.30869296,4345.0,4344.9,0.001]
[1760096053977,25.33486396,4345.0,4344.9,0.001]
[1760096054281,23.63412975,4345.0,4344.9,0.001]
[1760096054484,22.33886375,4345.0,4344.9,0.001]
[1760096054784,6.3871241,4345.0,4344.9,0.001]
[1760096054993,6.1800034,4345.0,4344.9,0.001]
[1760096055492,5.55883931,4345.0,4344.9,0.001]
[1760096055989,10.03575031,4345.0,4344.9,0.001]
[1760096056491,9.60010031,4345.0,4344.9,0.001]
[1760096056973,15.74462331,4345.0,4344.9,0.001]
[1760096057179,14.85836131,4345.0,4344.9,0.001]
[1760096057378,15.6866461,4345.0,4344.9,0.001]
[1760096057957,7.50573931,4345.0,4344.9,0.001]
[1760096058163,7.50693931,4345.0,4344.9,0.001]
[1760096058565,7.50613931,4345.0,4344.9,0.001]
[1760096059095,13.14622031,4345.0,4344.9,0.001]
[1760096059456,13.9745051,4345.0,4344.9,0.001]
[1760096060094,25.5342211,4345.0,4344.9,0.001]
[1760096061076,23.9822511,4345.0,4344.9,0.001]
[1760096062095,28.9259051,4345.0,4344.9,0.001]
[1760096062262,28.09762031,4345.0,4344.9,0.001]
[1760096062893,27.35859631,4345.0,4344.9,0.001]
[1760096063097,26.94828431,4345.0,4344.9,0.001]
[1760096063898,2.93530786,4344.6,4344.5,1e-08]
[1760096064074,40.21952777,4344.6,4344.5,1e-08]
[1760096064401,40.51940466,4344.6,4344.5,1e-08]
[1760096064613,47.32072777,4344.6,4344.5,1e-08]
[1760096065076,47.41303819,4344.6,4344.5,1e-08]
[1760096067101,2.93536084,4344.5,4343.8,1.918]
[1760096067403,39.11689599,4344.5,4343.8,1.918]
[1760096067571,39.11809599,4344.5,4343.8,0.001]
[1760096069035,34.85557279,4344.1,4343.8,0.001]
[1760096069207,40.2197927,4344.1,4343.8,0.001]
[1760096069408,40.2209927,4344.1,4343.8,0.001]
[1760096070244,40.3133044,4344.1,4343.8,0.001]
[1760096071344,11.14028791,4344.1,4343.8,0.001]
[1760096071544,41.14028791,4344.1,4343.8,0.001]
[1760096071965,22.69170091,4344.1,4343.8,0.001]
[1760096072141,17.3069484,4344.1,4343.8,0.001]
[1760096072345,28.7224704,4344.1,4343.8,0.001]
[1760096073361,10.3133044,4344.1,4343.8,0.001]
[1760096073666,25.4408604,4344.1,4343.8,0.001]
[1760096073878,9.6797044,4344.1,4343.8,0.001]
[1760096074174,12.32182457,4344.1,4343.8,0.001]
[1760096074472,22.4097834,4344.1,4343.8,0.001]
[1760096074774,21.9565512,4344.1,4343.8,0.001]
[1760096075136,21.3367594,4344.1,4343.8,0.001]
[1760096075576,21.9453164,4344.1,4343.8,0.001]
[1760096076681,22.1199914,4344.1,4343.8,0.001]
[1760096077753,22.1249914,4344.1,4343.8,0.001]
[1760096077968,21.6679914,4344.1,4343.8,0.001]
[1760096078171,4.71783105,4344.1,4343.8,0.001]
[1760096078375,7.83403105,4344.1,4343.8,1.919]
[1760096079286,7.26400405,4344.1,4343.8,1.919]
[1760096079509,11.40419095,4344.1,4343.8,1.919]
[1760096080700,11.40339095,4344.1,4343.8,1.919]
[1760096081555,6.93801795,4344.1,4343.8,1.919]
[1760096082486,6.93921795,4344.1,4343.8,1.919]
[1760096082656,10.14515595,4344.1,4343.8,1.919]
[1760096084093,10.77875595,4344.1,4343.8,1.919]
[1760096084899,27.69720795,4344.1,4343.8,1.919]
[1760096085100,23.85282695,4344.1,4343.8,1.919]
[1760096085666,24.5451184,4344.1,4343.8,1.919]
[1760096085866,29.3919154,4344.1,4343.8,1.919]
[1760096086928,23.6050114,4344.1,4343.8,1.919]
[1760096087134,24.22420909,4344.1,4343.8,1.919]
[1760096087841,25.7578554,4344.1,4343.8,1.919]
[1760096089038,27.4034114,4344.1,4343.8,1.919]
[1760096089338,28.02260909,4344.1,4343.8,1.919]
[1760096090797,8.2651094,4344.1,4343.8,1.919]
[1760096090999,35.4492534,4344.1,4343.8,1.919]
[1760096091308,32.3890924,4344.1,4343.8,1.919]
[1760096091901,38.2651094,4344.1,4343.8,1.919]
[1760096093101,39.09209291,4344.1,4343.8,1.919]
[1760096093499,41.01209291,4344.1,4343.8,1.919]
[1760096094548,11.01209291,4344.1,4343.8,1.919]
[1760096094748,9.49281795,4344.1,4343.8,1.919]
[1760096095925,7.57281795,4344.1,4343.8,1.919]
[1760096096332,9.66377695,4344.1,4343.8,1.919]
[1760096099519,10.28397162,4344.1,4343.8,1.919]
[1760096101218,0.49585826,4344.1,4343.8,1.919]
[1760096101431,0.1144,4344.2,4343.8,5.334]
[1760096101726,2.30317279,4344.1,4343.8,5.334]
[1760096102126,24.00616479,4344.1,4343.8,5.334]
[1760096102331,20.77809605,4344.1,4343.8,5.334]
[1760096102671,20.77729605,4344.1,4343.8,5.334]
[1760096103068,13.01529605,4344.1,4343.8,5.334]
[1760096103365,2.79823105,4344.1,4343.8,5.334]
[1760096103533,2.30237279,4344.1,4343.8,5.334]
[1760096104734,14.66476279,4344.1,4343.8,5.334]
[1760096104955,15.16062105,4344.1,4343.8,5.334]
[1760096105266,2.79823105,4344.1,4343.8,5.334]
[1760096105469,5.77119979,4344.1,4343.8,5.334]
[1760096105688,6.26905805,4344.1,4343.8,5.334]
[1760096105872,2.79903105,4344.1,4343.8,5.334]
[1760096106168,0.49785826,4344.1,4344.0,0.5345]
[1760096106353,0.002,4344.1,4344.0,1.0071]
[1760096107161,0.002,4344.1,4344.0,3.33214603]
[1760096107461,0.002,4344.1,4344.0,3.30912578]
[1760096108659,0.002,4344.1,4344.0,1.0071]
[1760096109169,0.002,4344.1,4344.0,0.5345]
[1760096109486,0.002,4344.1,4344.0,5.9205]
[1760096109683,2.30397279,4344.1,4344.0,5.387]
[1760096109887,0.002,4344.1,4344.0,5.387]
[1760096110186,2.30397279,4344.1,4344.0,5.387]
[1760096110884,0.002,4344.1,4344.0,5.387]
[1760096111089,0.002,4344.1,4344.0,5.9258]
[1760096111386,0.002,4344.1,4344.0,6.3984]
[1760096112085,0.002,4344.1,4344.0,5.9258]
[1760096118221,0.002,4344.1,4344.0,5.387]
[1760096121407,2.30397279,4344.1,4344.0,5.387]
[1760096121586,0.002,4344.1,4344.0,5.387]
[1760096124118,0.002,4344.1,4344.0,5.385]
[1760096124314,0.1164,4344.1,4344.0,5.385]
[1760096124745,0.1156,4344.1,4344.0,5.385]
[1760096125313,2.41757279,4344.1,4344.0,5.385]
[1760096125508,0.1156,4344.1,4344.0,5.385]
[1760096126042,2.41757279,4344.1,4344.0,5.385]
[1760096126612,18.29694969,4344.1,4344.0,3.467]
[1760096126840,18.79162035,4344.1,4344.0,3.467]
[1760096127014,19.42522035,4344.1,4344.0,3.467]
[1760096127214,23.62009135,4344.1,4344.0,3.467]
[1760096127945,17.60231435,4344.1,4344.0,3.467]
[1760096128147,15.73326335,4344.1,4344.0,3.467]
[1760096128351,17.90385535,4344.1,4344.0,3.467]
[1760096129247,3.43144345,4344.1,4344.0,3.467]
[1760096129449,2.93677279,4344.1,4344.0,3.467]
[1760096130122,0.1156,4344.1,4344.0,3.467]
[1760096130330,0.1156,4344.1,4344.0,3.9125]
[1760096130523,0.1156,4344.1,4344.0,3.97834432]
[1760096130524,0.0012,4344.1,4344.0,3.97834432]
[1760096131715,2.30317279,4344.1,4344.0,3.97834432]
[1760096131916,2.30317279,4344.1,4344.0,3.467]
[1760096132441,0.0012,4344.1,4344.0,3.467]
[1760096133252,2.30317279,4344.1,4344.0,3.467]
[1760096133442,6.44335969,4344.1,4344.0,3.467]
[1760096133631,6.93803035,4344.1,4344.0,3.467]
[1760096139053,0.0012,4344.1,4344.0,3.467]
[1760096140369,0.0012,4344.1,4344.0,3.9125]
[1760096140757,0.0012,4344.1,4344.0,4.29170769]
[1760096141267,0.0012,4344.1,4344.0,4.73720769]
[1760096141833,0.0012,4344.1,4344.0,7.03923347]
[1760096142067,0.0012,4344.1,4344.0,4.73720769]
[1760096142277,0.0012,4344.1,4344.0,7.03923347]
[1760096142833,0.0012,4344.1,4344.0,4.73720769]
[1760096143039,0.0012,4344.1,4344.0,4.29170769]
[1760096143364,0.0012,4344.1,4344.0,5.385]
[1760096143672,0.0012,4344.1,4344.0,5.8305]
[1760096144236,0.0012,4344.1,4344.0,5.385]
[1760096145371,0.0012,4344.1,4344.0,5.8305]
[1760096145871,0.0012,4344.1,4344.0,8.13252578]
[1760096146065,0.0012,4344.1,4344.0,9.18752813]
[1760096146279,0.0012,4344.1,4344.0,6.88550235]
[1760096146778,0.0004,4344.1,4344.0,6.88550235]
[1760096152886,0.0004,4344.1,4344.0,9.18752813]
[1760096153071,0.0004,4344.1,4344.0,9.30192813]
[1760096160504,0.0004,4344.1,4344.0,11.22192813]
[1760096162013,0.6336,4345.5,4344.8,2.30156541]
[1760096162253,0.6336,4345.5,4344.9,5.382]
[1760096162254,2.93485514,4345.5,4344.9,5.382]
[1760096162407,0.49511069,4345.7,4344.9,5.8314]
[1760096162606,2.30110147,4345.8,4345.0,0.4494]
[1760096162925,2.30117935,4345.6,4345.1,3.465]
[1760096163132,2.30117935,4345.6,4345.1,3.9144]
[1760096163501,2.30123604,4345.5,4345.1,3.9144]
[1760096163811,2.30107291,4345.8,4345.1,3.465]
[1760096163812,0.49485501,4345.7,4345.1,3.465]
[1760096164146,2.93505619,4345.1,4344.4,2.30179334]
[1760096164358,2.30140057,4345.2,4344.5,5.382]
[1760096164642,0.6336,4345.1,4344.5,8.13315081]
[1760096165135,0.6336,4345.1,4344.5,5.8314]
[1760096165337,0.6336,4345.2,4344.7,2.30163261]
[1760096165663,0.002,4345.3,4344.9,2.30152695]
[1760096165825,0.002,4345.3,4345.0,3.465]
[1760096166014,0.002,4345.3,4345.0,3.93741495]
[1760096166209,0.002,4345.3,4345.1,0.4494]
[1760096166513,0.002,4345.3,4345.2,3.465]
[1760096166937,0.002,4345.3,4345.2,3.9144]
[1760096168947,0.0012,4345.3,4345.2,3.465]
[1760096169453,0.0012,4345.3,4345.2,3.9144]
[1760096170148,0.0012,4345.3,4345.2,3.9374139]
[1760096170445,0.0012,4345.3,4345.2,3.9144]
[1760096170956,0.0012,4345.3,4345.2,3.465]
[1760096172431,0.0012,4345.3,4345.2,3.9144]
[1760096175922,0.0012,4345.3,4345.2,3.465]
[1760096176244,0.6348,4345.3,4345.2,3.465]
[1760096177048,0.6336,4345.2,4345.1,0.1144]
[1760096177257,0.0012,4345.3,4345.0,0.001]
[1760096177258,2.935043,4345.1,4345.0,0.001]
[1760096177752,8.699226,4345.1,4345.0,3.465]
[1760096178058,9.19403936,4345.1,4345.0,3.465]
[1760096178220,9.88608646,4345.1,4345.0,3.465]
[1760096178558,18.34763246,4345.1,4345.0,3.465]
[1760096179564,19.35113646,4345.1,4345.0,3.465]
[1760096179720,15.02230346,4345.1,4345.0,3.465]
[1760096180446,14.34204946,4345.1,4345.0,3.465]
[1760096180643,10.98439446,4345.1,4345.0,3.465]
[1760096180827,3.42985636,4345.1,4345.0,3.465]
[1760096181045,2.935043,4345.1,4345.0,3.465]
[1760096181255,15.785692,4345.1,4345.0,3.465]
[1760096181466,16.28050536,4345.1,4345.0,3.465]
[1760096181960,7.93317336,4345.1,4345.0,3.465]
[1760096184473,35.35105636,4345.1,4345.0,0.001]
[1760096184678,31.43940895,4345.1,4345.0,0.001]
[1760096184867,29.32592976,4345.1,4345.0,0.001]
[1760096185243,29.94464531,4345.1,4345.0,0.001]
[1760096185443,30.64756431,4345.1,4345.0,0.001]
[1760096186457,30.25244731,4345.1,4345.0,0.001]
[1760096186943,25.05043931,4345.1,4345.0,0.001]
[1760096187556,6.66186531,4345.1,4345.0,0.001]
[1760096187754,21.24542431,4345.1,4345.0,0.001]
[1760096187970,18.83740531,4345.1,4345.0,0.001]
[1760096188384,9.50987576,4345.1,4345.0,0.001]
[1760096188685,12.47091376,4345.1,4345.0,0.001]
[1760096188988,10.76291376,4345.1,4345.0,0.001]
[1760096189492,10.04291376,4345.1,4345.0,0.001]
[1760096189649,11.63969376,4345.1,4345.0,0.001]
[1760096190550,11.63849376,4345.1,4345.0,0.001]
[1760096190749,18.07931776,4345.1,4345.0,0.001]
[1760096190949,16.57087276,4345.1,4345.0,0.001]
[1760096191359,16.57207276,4345.1,4345.0,0.001]
[1760096191558,5.40834976,4345.1,4345.0,0.001]
[1760096191853,5.6615364,4345.1,4345.0,0.001]
[1760096192520,6.15613316,4345.1,4345.0,0.001]
[1760096192922,0.6920934,4345.1,4345.0,0.001]
[1760096193123,0.0012,4345.3,4345.0,0.001]
[1760096193124,0.0012,4345.3,4345.0,0.47531495]
[1760096193437,0.0012,4345.3,4345.0,2.77680592]
[1760096193621,0.0012,4345.3,4345.1,0.34082059]
[1760096193821,0.0012,4345.3,4345.2,1.917]
[1760096194186,0.0012,4345.3,4345.2,2.3683]
[1760096195979,0.0012,4345.3,4345.2,1.917]
[1760096196978,0.0012,4345.3,4345.2,2.3683]
[1760096197184,0.0012,4345.3,4345.2,2.70245206]
[1760096199775,0.0012,4345.3,4345.2,2.25115206]
[1760096200250,0.0012,4345.3,4345.2,2.70245206]
[1760096200892,0.0012,4345.3,4345.2,5.02685599]
[1760096201189,0.0012,4345.3,4345.2,5.11824209]
[1760096205191,0.0012,4345.3,4345.2,2.81685206]
[1760096206326,0.0012,4345.3,4345.2,5.11824209]
[1760096208694,0.0012,4345.3,4345.2,8.58224209]
[1760096212867,0.0012,4345.3,4345.2,10.50224209]
[1760096213064,0.0004,4345.3,4345.2,10.50224209]
[1760096220929,1e-08,4345.8,4345.7,2.30112525]
[1760096221088,1e-08,4345.8,4345.7,16.37796416]
[1760096221291,1e-08,4345.8,4345.7,12.83020097]
[1760096221493,1e-08,4345.8,4345.7,9.36720097]
[1760096221693,1e-08,4345.8,4345.7,20.73620097]
[1760096224828,1e-08,4345.8,4345.7,5.23133778]
[1760096225120,1e-08,4345.8,4345.7,20.73420097]
[1760096230718,1e-08,4345.8,4345.7,9.36720097]
[1760096230947,1e-08,4345.8,4345.7,20.73420097]
[1760096235036,0.00680001,4345.9,4345.8,2.30107229]
[1760096235232,0.00680001,4345.9,4345.8,6.94654274]
[1760096235435,0.00680001,4345.9,4345.8,16.06177229]
[1760096240335,0.00680001,4345.9,4345.8,2.30107229]
[1760096240529,0.00680001,4345.9,4345.8,7.67907229]
[1760096240729,0.00680001,4345.9,4345.8,8.15277229]
[1760096242865,0.00680001,4345.9,4345.8,8.26717229]
[1760096243163,0.00680001,4345.9,4345.8,10.33649129]
[1760096243856,0.00680001,4345.9,4345.4,2.30127379]
[1760096244053,0.00680001,4345.9,4345.8,1.916]
[1760096244371,0.00680001,4345.9,4345.1,0.4747]
[1760096244567,0.64040001,4345.9,4345.2,5.378]
[1760096244794,0.00680001,4345.9,4345.2,7.67938566]
[1760096245067,0.00680001,4345.9,4345.3,2.30131583]
[1760096245365,0.00680001,4345.9,4345.4,3.462]
[1760096247439,0.00680001,4345.9,4345.4,5.76326201]
[1760096248148,0.00680001,4345.9,4345.4,6.19956201]
[1760096248683,0.00680001,4345.9,4345.5,2.76050129]
[1760096248850,0.00680001,4345.9,4345.6,3.462]
[1760096251567,0.00880001,4345.9,4345.6,3.8983]
[1760096253660,0.00880001,4345.9,4345.7,0.4363]
[1760096253959,0.00880001,4345.9,4345.8,3.463]
[1760096256594,0.00880001,4345.9,4345.8,3.48601072]
[1760096256766,0.64240001,4345.9,4345.8,3.48601072]
[1760096256967,0.00880001,4345.9,4345.8,6.22338301]
[1760096257182,0.00800001,4345.9,4345.8,7.35079691]
[1760096271382,0.00800001,4345.9,4345.8,7.35179691]
[1760096272086,0.00800001,4345.9,4345.8,2.0314]
[1760096272285,0.00800001,4345.9,4345.8,5.4934]
[1760096272487,0.00800001,4345.9,4345.8,5.946]
[1760096273126,0.00800001,4345.9,4345.8,8.24707229]
[1760096273328,0.00800001,4345.9,4345.8,5.946]
[1760096273502,0.00800001,4345.9,4345.8,8.24707229]
[1760096273827,0.00800001,4345.9,4345.8,5.946]
[1760096274326,0.00800001,4345.9,4345.8,8.24707229]
[1760096274700,0.00800001,4345.9,4345.8,2.86907229]
[1760096274892,0.00800001,4345.9,4345.8,8.24807229]
[1760096275095,0.00800001,4345.9,4345.8,7.79547229]
[1760096275603,0.00800001,4345.9,4345.8,8.24807229]
[1760096277495,0.00800001,4345.9,4345.8,9.30309632]
[1760096279221,0.00720001,4345.9,4345.8,8.24807229]
[1760096281394,0.00720001,4345.9,4345.8,5.947]
[1760096281596,0.00720001,4345.9,4345.8,8.24807229]
[1760096297246,0.00720001,4345.9,4345.8,10.16807229]
[1760096301484,0.00640001,4345.9,4345.8,10.16807229]
[1760096302093,0.00640001,4345.9,4345.8,11.90164924]
[1760096307084,0.00640001,4345.9,4345.8,6.52264924]
[1760096307280,0.00640001,4345.9,4345.8,16.15607229]
[1760096314738,0.00640001,4345.9,4345.8,14.23607229]
[1760096314902,0.00640001,4345.9,4345.8,11.935]
[1760096315109,0.00640001,4345.9,4345.8,5.4934]
[1760096316259,0.64000001,4345.9,4345.8,7.79447229]
[1760096317440,0.00640001,4345.9,4345.8,8.22357229]
[1760096317617,0.00640001,4345.9,4345.8,9.87504587]
[1760096320168,0.00640001,4345.9,4345.8,8.22357229]
[1760096320744,0.00640001,4345.9,4345.8,3.5774]
[1760096321076,0.00640001,4345.9,4345.8,8.22357229]
[1760096323435,0.00560001,4345.9,4345.8,8.22357229]
[1760096324199,0.00560001,4345.9,4345.8,5.4934]
[1760096327105,0.63920001,4345.9,4345.8,5.4934]
[1760096327304,0.63920001,4345.9,4345.8,1.917]
[1760096327305,17.96203698,4345.9,4345.8,1.917]
[1760096327618,20.31478645,4345.9,4345.8,4.901]
[1760096327893,20.31478645,4345.9,4345.8,0.001]
[1760096328116,22.23478645,4345.9,4345.8,0.904]
[1760096328446,10.18392245,4345.9,4345.8,0.904]
[1760096328650,19.30734245,4345.9,4345.8,0.904]
[1760096329054,15.65691145,4345.9,4345.8,0.904]
[1760096329597,29.97650245,4345.9,4345.8,0.904]
[1760096330479,25.21104745,4345.9,4345.8,0.904]
[1760096330682,10.18392245,4345.9,4345.8,0.904]
[1760096330886,27.31336245,4345.9,4345.8,0.904]
[1760096331085,27.4532991,4345.9,4345.8,0.904]
[1760096331281,27.1239811,4345.9,4345.8,0.904]
[1760096331673,10.6348591,4345.9,4345.8,0.904]
[1760096331873,27.1289811,4345.9,4345.8,0.904]
[1760096332702,10.6348591,4345.9,4345.8,0.904]
[1760096332889,27.6420871,4345.9,4345.8,0.904]
[1760096333216,24.0257791,4345.9,4345.8,0.904]
[1760096333917,22.9171531,4345.9,4345.8,0.904]
[1760096334321,5.55188353,4345.9,4345.8,0.904]
[1760096334628,2.61726418,4345.9,4345.8,0.904]
[1760096334832,2.73166418,4345.9,4345.8,0.904]
[1760096335159,3.36526418,4345.9,4345.8,0.904]
[1760096336612,1.44526418,4345.9,4345.8,0.904]
[1760096337792,1.44526418,4345.9,4345.8,0.001]
[1760096337993,1.44526418,4345.9,4345.8,5.381]
[1760096338580,1.33086418,4345.9,4345.8,5.381]
[1760096338786,1.33086418,4345.9,4345.8,6.64914889]
[1760096339094,1.33086418,4345.9,4345.8,8.95022118]
[1760096339095,0.69726418,4345.9,4345.8,8.95022118]
[1760096339407,0.00560001,4345.9,4345.8,9.06462118]
[1760096345525,0.00480001,4345.9,4345.8,9.06462118]
[1760096351627,0.00480001,4345.9,4345.8,3.68462118]
[1760096351933,0.00480001,4345.9,4345.8,9.06362118]
[1760096352830,0.00480001,4345.9,4345.8,3.68462118]
[1760096353007,0.00480001,4345.9,4345.8,9.06262118]
[1760096356048,0.00480001,4345.9,4345.8,8.94822118]
[1760096356216,0.00480001,4345.9,4345.8,9.06262118]
[1760096359149,0.00480001,4345.9,4345.8,13.1980028]
[1760096359546,0.00480001,4345.9,4345.8,9.06262118]
[1760096365842,0.00480001,4345.9,4345.8,0.5698]
[1760096366034,0.00480001,4345.9,4345.8,5.4934]
[1760096366556,0.00480001,4345.9,4345.8,7.79447229]
[1760096367755,0.00400001,4345.9,4345.8,7.79447229]
[1760096369486,0.00400001,4345.9,4345.8,5.4934]
[1760096369770,0.00400001,4345.9,4345.8,5.379]
[1760096369771,0.57380001,4345.9,4345.8,5.379]
[1760096370073,1.20740001,4345.9,4345.8,5.379]
[1760096370652,0.63760001,4345.9,4345.8,5.379]
[1760096371073,2.93861936,4345.9,4345.8,5.379]
[1760096372363,2.93981936,4345.9,4345.8,5.379]
[1760096372538,3.43643776,4345.9,4345.8,5.379]
[1760096373155,2.93981936,4345.9,4345.8,5.379]
[1760096375986,4.85981936,4345.9,4345.8,5.379]
[1760096376284,5.35601354,4345.9,4345.8,5.379]
[1760096378301,4.85981936,4345.9,4345.8,5.379]
[1760096380169,5.55168931,4345.9,4345.8,5.379]
[1760096381911,3.25066996,4345.9,4345.8,5.379]
[1760096382085,5.55048931,4345.9,4345.8,5.379]
[1760096389807,5.54968931,4345.9,4345.8,5.379]
[1760096390030,3.24866996,4345.9,4345.8,5.379]
[1760096392339,0.63680001,4345.9,4345.8,5.816]
[1760096393107,0.63680001,4345.9,4345.8,5.379]
[1760096395347,0.63680001,4345.9,4345.8,0.001]
[1760096395348,4.85781936,4345.9,4345.8,0.001]
[1760096395574,5.35551315,4345.9,4345.8,5.381]
[1760096396074,6.04734161,4345.9,4345.8,5.381]
[1760096397072,13.55534761,4345.9,4345.8,5.381]
[1760096397969,6.04734161,4345.9,4345.8,5.381]
[1760096398167,8.38882161,4345.9,4345.8,5.381]
[1760096398475,6.04734161,4345.9,4345.8,5.381]
[1760096400572,18.64039005,4345.9,4345.8,3.464]
[1760096400883,6.04734161,4345.9,4345.8,3.464]
[1760096402040,6.04614161,4345.9,4345.8,3.464]
[1760096404306,6.04734161,4345.9,4345.8,3.464]
[1760096404468,12.89061061,4345.9,4345.8,5.381]
[1760096404805,12.27112961,4345.9,4345.8,5.381]
[1760096404954,11.96177961,4345.9,4345.8,5.381]
[1760096405399,11.96177961,4345.9,4345.8,0.001]
[1760096405696,14.25668768,4345.9,4345.8,1.081]
[1760096405860,13.49280468,4345.9,4345.8,1.081]